[Event "*** Titled Tuesday Blitz"]
[Site "Chess.com"]
[Date "2021.03.30"]
[Round "3"]
[White "chigorin28"]
[Black "McCarthyStone"]
[Result "0-1"]
[WhiteElo "2590"]
[BlackElo "2426"]
[TimeControl "180+1"]
[EndTime "10:29:44 PDT"]
[Termination "McCarthyStone won on time"]

1. e4 {[%clk 0:03:00.9]} 1... d6 {[%clk 0:02:59.2]} 2. d4 {[%clk 0:03:00.4]}
2... Nf6 {[%clk 0:03:00.1]} 3. Nc3 {[%clk 0:02:59.7]} 3... Nc6 {[%clk
0:03:00.7]} 4. d5 {[%clk 0:02:58.9]} 4... Nb8 {[%clk 0:03:00.8]} 5. f3 {[%clk
0:02:59.2]} 5... g6 {[%clk 0:03:00.2]} 6. Be3 {[%clk 0:02:59.4]} 6... Bg7 {[%clk
0:03:00.6]} 7. Qd2 {[%clk 0:02:59.1]} 7... c6 {[%clk 0:02:54.3]} 8. O-O-O {[%clk
0:02:54.4]} 8... cxd5 {[%clk 0:02:53.7]} 9. Nxd5 {[%clk 0:02:52.4]} 9... Nxd5
{[%clk 0:02:52.6]} 10. exd5 {[%clk 0:02:52.7]} 10... h5 {[%clk 0:02:50.4]} 11.
Ne2 {[%clk 0:02:52.5]} 11... Nd7 {[%clk 0:02:46.4]} 12. Kb1 {[%clk 0:02:41.7]}
12... b5 {[%clk 0:02:42.7]} 13. Nd4 {[%clk 0:02:40.4]} 13... O-O {[%clk
0:02:37.7]} 14. Nc6 {[%clk 0:02:37.8]} 14... Qe8 {[%clk 0:02:34]} 15. h4 {[%clk
0:02:29.2]} 15... Ne5 {[%clk 0:02:33.2]} 16. Nxe5 {[%clk 0:02:26.3]} 16... Bxe5
{[%clk 0:02:30.9]} 17. g4 {[%clk 0:02:23.9]} 17... hxg4 {[%clk 0:02:02]} 18. h5
{[%clk 0:02:18.4]} 18... f5 {[%clk 0:01:56.4]} 19. fxg4 {[%clk 0:02:09.9]} 19...
f4 {[%clk 0:01:48.8]} 20. Bd4 {[%clk 0:02:07.7]} 20... Bxg4 {[%clk 0:01:46.4]}
21. hxg6 {[%clk 0:01:58]} 21... Bxd1 {[%clk 0:01:41.2]} 22. Bxe5 {[%clk
0:01:33.8]} 22... dxe5 {[%clk 0:01:38.1]} 23. Qxd1 {[%clk 0:01:24.9]} 23... Kg7
{[%clk 0:01:06]} 24. Rh7+ {[%clk 0:01:08.3]} 24... Kf6 {[%clk 0:01:02.4]} 25.
Qh5 {[%clk 0:01:03.8]} 25... Rh8 {[%clk 0:00:33.1]} 26. Qh4+ {[%clk 0:01:03.1]}
26... Kf5 {[%clk 0:00:29.8]} 27. Bh3+ {[%clk 0:00:59.9]} 27... Ke4 {[%clk
0:00:29.1]} 28. g7 {[%clk 0:00:55.8]} 28... Rxh7 {[%clk 0:00:23.1]} 29. Qxh7+
{[%clk 0:00:56]} 29... Kf3 {[%clk 0:00:17.2]} 30. Qd3+ {[%clk 0:00:53.8]} 30...
Kf2 {[%clk 0:00:17.6]} 31. Qf1+ {[%clk 0:00:48.2]} 31... Ke3 {[%clk 0:00:15.7]}
32. Qg1+ {[%clk 0:00:45.9]} 32... Ke2 {[%clk 0:00:13.3]} 33. Bg4+ {[%clk
0:00:44.8]} 33... f3 {[%clk 0:00:11.9]} 34. Qg2+ {[%clk 0:00:41.8]} 34... Ke3
{[%clk 0:00:11.4]} 35. Qxf3+ {[%clk 0:00:41.5]} 35... Kd4 {[%clk 0:00:12.3]} 36.
Qf2+ {[%clk 0:00:39.3]} 36... Kxd5 {[%clk 0:00:10.8]} 37. Bf3+ {[%clk
0:00:39.6]} 37... e4 {[%clk 0:00:11.1]} 38. Qd2+ {[%clk 0:00:35.3]} 38... Ke6
{[%clk 0:00:11.1]} 39. Bg4+ {[%clk 0:00:32.9]} 39... Kf6 {[%clk 0:00:10.9]} 40.
Qf4+ {[%clk 0:00:32.1]} 40... Kxg7 {[%clk 0:00:11.3]} 41. Qe5+ {[%clk
0:00:30.5]} 41... Kh6 {[%clk 0:00:10.3]} 42. Qf4+ {[%clk 0:00:26.5]} 42... Kg7
{[%clk 0:00:10.3]} 43. Qxe4 {[%clk 0:00:17.6]} 43... Rd8 {[%clk 0:00:08.8]} 44.
Qe5+ {[%clk 0:00:17.3]} 44... Kh6 {[%clk 0:00:08.9]} 45. Qf4+ {[%clk 0:00:14]}
45... Kg7 {[%clk 0:00:08.9]} 46. b3 {[%clk 0:00:11.2]} 46... Qg6 {[%clk
0:00:07.5]} 47. Qe5+ {[%clk 0:00:09.4]} 47... Qf6 {[%clk 0:00:07.8]} 48. Qe2
{[%clk 0:00:02.6]} 48... Rd4 {[%clk 0:00:07.4]} 49. Bf3 {[%clk 0:00:02]} 49...
b4 {[%clk 0:00:07.2]} 50. Qg2+ {[%clk 0:00:02.1]} 50... Kf7 {[%clk 0:00:07.7]}
51. Bd5+ {[%clk 0:00:01.8]} 51... e6 {[%clk 0:00:05.3]} 52. Bf3 {[%clk
0:00:01.9]} 52... Rf4 {[%clk 0:00:05]} 53. Bh5+ {[%clk 0:00:02]} 53... Ke7
{[%clk 0:00:04.7]} 54. Be2 {[%clk 0:00:02.4]} 54... Rf2 {[%clk 0:00:04.4]} 55.
Qb7+ {[%clk 0:00:02.8]} 55... Kf8 {[%clk 0:00:04.8]} 56. Qc8+ {[%clk 0:00:02.8]}
56... Kg7 {[%clk 0:00:04.9]} 57. Qb7+ {[%clk 0:00:02.6]} 57... Qf7 {[%clk
0:00:04.8]} 58. Qe4 {[%clk 0:00:02.6]} 58... Rf4 {[%clk 0:00:03.9]} 59. Qg2+
{[%clk 0:00:02.6]} 59... Kf6 {[%clk 0:00:03.4]} 60. a4 {[%clk 0:00:03]} 60... e5
{[%clk 0:00:03.4]} 61. Qc6+ {[%clk 0:00:02.9]} 61... Kf5 {[%clk 0:00:03.8]} 62.
Bd3+ {[%clk 0:00:02.8]} 62... Kg5 {[%clk 0:00:04.4]} 63. Qg2+ {[%clk 0:00:02.7]}
63... Rg4 {[%clk 0:00:03.9]} 64. Qd2+ {[%clk 0:00:03.1]} 64... Qf4 {[%clk
0:00:04.8]} 65. Qe2 {[%clk 0:00:02.3]} 65... Rg1+ {[%clk 0:00:05.1]} 66. Ka2
{[%clk 0:00:02.8]} 66... Qd4 {[%clk 0:00:03.6]} 67. c3 {[%clk 0:00:01]} 67...
Qg4 {[%clk 0:00:03.2]} 0-1

[Event "*** Titled Tuesday Blitz"]
[Site "Chess.com"]
[Date "2021.03.30"]
[Round "3"]
[White "Vuk2000"]
[Black "Pikachess999"]
[Result "1-0"]
[WhiteElo "2726"]
[BlackElo "2347"]
[TimeControl "180+1"]
[EndTime "10:29:44 PDT"]
[Termination "Vuk2000 won by resignation"]

1. d4 {[%clk 0:02:59.9]} 1... d5 {[%clk 0:02:58]} 2. Bf4 {[%clk 0:03:00]} 2...
Nf6 {[%clk 0:02:57.7]} 3. e3 {[%clk 0:03:00.3]} 3... e6 {[%clk 0:02:58.1]} 4.
Nd2 {[%clk 0:03:00]} 4... c5 {[%clk 0:02:58.6]} 5. c3 {[%clk 0:03:00]} 5... Bd6
{[%clk 0:02:59.2]} 6. Bg3 {[%clk 0:02:59.4]} 6... O-O {[%clk 0:02:59.1]} 7. Ngf3
{[%clk 0:02:58.5]} 7... Qc7 {[%clk 0:02:59.8]} 8. dxc5 {[%clk 0:02:58.6]} 8...
Qxc5 {[%clk 0:02:57.6]} 9. Bd3 {[%clk 0:02:58.8]} 9... Nbd7 {[%clk 0:02:52.5]}
10. O-O {[%clk 0:02:58]} 10... e5 {[%clk 0:02:50]} 11. e4 {[%clk 0:02:57.4]}
11... dxe4 {[%clk 0:02:42.8]} 12. Bxe4 {[%clk 0:02:47.2]} 12... Qc7 {[%clk
0:02:38.2]} 13. Re1 {[%clk 0:02:38.3]} 13... Nc5 {[%clk 0:02:37.4]} 14. Bc2
{[%clk 0:02:10.9]} 14... Bg4 {[%clk 0:02:31.7]} 15. Nc4 {[%clk 0:02:10]} 15...
Rad8 {[%clk 0:02:18.9]} 16. Nxd6 {[%clk 0:02:08.6]} 16... Rxd6 {[%clk
0:02:07.8]} 17. Bxe5 {[%clk 0:02:07.7]} 17... Rxd1 {[%clk 0:02:07.5]} 18. Bxc7
{[%clk 0:02:06.6]} 18... Rxa1 {[%clk 0:02:06.9]} 19. Rxa1 {[%clk 0:02:05.5]}
19... Bxf3 {[%clk 0:02:07.6]} 20. gxf3 {[%clk 0:02:06.1]} 20... Ne6 {[%clk
0:01:51.1]} 21. Be5 {[%clk 0:02:01.6]} 21... Nd5 {[%clk 0:01:45]} 22. Be4 {[%clk
0:01:57.1]} 22... Ndf4 {[%clk 0:01:29.9]} 23. Bxb7 {[%clk 0:01:33.1]} 23... Nd3
{[%clk 0:01:28.4]} 24. Bd6 {[%clk 0:01:32.9]} 24... Rd8 {[%clk 0:01:27.8]} 25.
Ba3 {[%clk 0:01:31.6]} 25... Nxb2 {[%clk 0:01:01.8]} 26. Rb1 {[%clk 0:00:42.9]}
26... Nc4 {[%clk 0:00:58.3]} 27. Be7 {[%clk 0:00:42.6]} 27... Rd7 {[%clk
0:00:47.3]} 28. Bd5 {[%clk 0:00:42.2]} 28... Rxe7 {[%clk 0:00:44.4]} 29. Rb8+
{[%clk 0:00:40.1]} 29... Nf8 {[%clk 0:00:44.3]} 30. Bxc4 {[%clk 0:00:40.6]}
30... Rc7 {[%clk 0:00:44.9]} 31. Rb4 {[%clk 0:00:40]} 31... g6 {[%clk
0:00:40.4]} 32. Kf1 {[%clk 0:00:39.9]} 32... Kg7 {[%clk 0:00:40.8]} 33. Ke2
{[%clk 0:00:39.9]} 33... Kf6 {[%clk 0:00:41.3]} 34. Kd2 {[%clk 0:00:34.8]} 34...
Nd7 {[%clk 0:00:41.6]} 35. Bd5 {[%clk 0:00:33]} 35... Nb6 {[%clk 0:00:38.7]} 36.
Bb3 {[%clk 0:00:32.9]} 36... Kg5 {[%clk 0:00:30.9]} 37. a4 {[%clk 0:00:31.3]}
37... f5 {[%clk 0:00:29.4]} 38. a5 {[%clk 0:00:19.6]} 38... Nd7 {[%clk
0:00:29.7]} 39. Bd5 {[%clk 0:00:19.1]} 39... Nc5 {[%clk 0:00:25.7]} 40. c4
{[%clk 0:00:18.9]} 40... Kh4 {[%clk 0:00:17.1]} 41. Ke3 {[%clk 0:00:18.1]} 41...
Kh3 {[%clk 0:00:17.1]} 42. f4 {[%clk 0:00:14.4]} 42... h6 {[%clk 0:00:15.1]} 43.
Kd4 {[%clk 0:00:12]} 43... g5 {[%clk 0:00:12.4]} 44. fxg5 {[%clk 0:00:09.6]}
44... hxg5 {[%clk 0:00:13.3]} 45. Rb1 {[%clk 0:00:09.5]} 45... g4 {[%clk
0:00:09.5]} 46. Ke5 {[%clk 0:00:09.4]} 46... Nd3+ {[%clk 0:00:07.3]} 47. Kxf5
{[%clk 0:00:09.3]} 47... Nxf2 {[%clk 0:00:07.9]} 48. Ke6 {[%clk 0:00:09.3]}
48... Kxh2 {[%clk 0:00:06.5]} 49. Kd6 {[%clk 0:00:09.4]} 49... Rh7 {[%clk
0:00:06.8]} 50. c5 {[%clk 0:00:09.4]} 50... g3 {[%clk 0:00:07]} 51. c6 {[%clk
0:00:09.3]} 51... g2 {[%clk 0:00:06.4]} 52. Bxg2 {[%clk 0:00:08.9]} 52... Kxg2
{[%clk 0:00:07.3]} 53. c7 {[%clk 0:00:09]} 53... Ne4+ {[%clk 0:00:07.6]} 54. Kc6
{[%clk 0:00:09.2]} 54... Rh6+ {[%clk 0:00:07.6]} 55. Kd5 {[%clk 0:00:09.2]}
55... Nc3+ {[%clk 0:00:07.4]} 56. Kc5 {[%clk 0:00:05.6]} 56... Rh8 {[%clk
0:00:03.7]} 57. Rc1 {[%clk 0:00:05.7]} 57... Ne4+ {[%clk 0:00:03.9]} 58. Kd5
{[%clk 0:00:05.6]} 58... Nf6+ {[%clk 0:00:03.9]} 59. Ke6 {[%clk 0:00:05.7]}
59... Ne4 {[%clk 0:00:02]} 60. c8=Q {[%clk 0:00:05.9]} 60... Rxc8 {[%clk
0:00:02.9]} 61. Rxc8 {[%clk 0:00:06.4]} 1-0

[Event "*** Titled Tuesday Blitz"]
[Site "Chess.com"]
[Date "2021.03.30"]
[Round "3"]
[White "yoelpolanco"]
[Black "A-S-00"]
[Result "1-0"]
[WhiteElo "2246"]
[BlackElo "2363"]
[TimeControl "180+1"]
[EndTime "10:29:50 PDT"]
[Termination "yoelpolanco won on time"]

1. Nf3 {[%clk 0:03:00.9]} 1... d5 {[%clk 0:01:58.5]} 2. g3 {[%clk 0:02:57.5]}
2... Nf6 {[%clk 0:01:59.4]} 3. Bg2 {[%clk 0:02:57.3]} 3... c6 {[%clk 0:01:59.6]}
4. O-O {[%clk 0:02:56.9]} 4... g6 {[%clk 0:02:00.5]} 5. b3 {[%clk 0:02:56]} 5...
Bg7 {[%clk 0:02:01.4]} 6. Bb2 {[%clk 0:02:56.4]} 6... O-O {[%clk 0:02:02.3]} 7.
d3 {[%clk 0:02:56.6]} 7... Nbd7 {[%clk 0:02:02.2]} 8. Nbd2 {[%clk 0:02:57]} 8...
Re8 {[%clk 0:02:01.9]} 9. c4 {[%clk 0:02:54.1]} 9... e5 {[%clk 0:02:01.7]} 10.
cxd5 {[%clk 0:02:53.9]} 10... cxd5 {[%clk 0:02:01.4]} 11. e4 {[%clk 0:02:54.1]}
11... dxe4 {[%clk 0:01:59.1]} 12. Nxe4 {[%clk 0:02:53.2]} 12... Qe7 {[%clk
0:01:59.4]} 13. Qe2 {[%clk 0:02:47.6]} 13... Nd5 {[%clk 0:01:56.9]} 14. Rfe1
{[%clk 0:02:39.8]} 14... f5 {[%clk 0:01:53]} 15. Nc3 {[%clk 0:02:38.9]} 15...
N5b6 {[%clk 0:01:44.7]} 16. Rad1 {[%clk 0:02:35.4]} 16... Qf7 {[%clk 0:01:38.2]}
17. Nd2 {[%clk 0:02:23.6]} 17... Kh8 {[%clk 0:01:33.9]} 18. Nc4 {[%clk
0:02:21.8]} 18... Nxc4 {[%clk 0:01:31]} 19. dxc4 {[%clk 0:02:22.1]} 19... Nb6
{[%clk 0:01:30.3]} 20. Nd5 {[%clk 0:02:19.5]} 20... e4 {[%clk 0:01:27.9]} 21.
Bxg7+ {[%clk 0:02:17.5]} 21... Qxg7 {[%clk 0:01:27.4]} 22. Nxb6 {[%clk
0:02:16.5]} 22... axb6 {[%clk 0:01:28.3]} 23. Rd6 {[%clk 0:02:16]} 23... Be6
{[%clk 0:01:27.5]} 24. Rxb6 {[%clk 0:02:15.2]} 24... Rad8 {[%clk 0:00:45.8]} 25.
Rd1 {[%clk 0:02:13.2]} 25... Qc7 {[%clk 0:00:38.6]} 26. Rxd8 {[%clk 0:02:05.7]}
26... Qxd8 {[%clk 0:00:38.5]} 27. Rb5 {[%clk 0:02:02.7]} 27... Re7 {[%clk
0:00:36.6]} 28. h4 {[%clk 0:01:59.7]} 28... Rd7 {[%clk 0:00:36.4]} 29. Qb2+
{[%clk 0:01:59.7]} 29... Kg8 {[%clk 0:00:36]} 30. Qe5 {[%clk 0:01:54.6]} 30...
Bf7 {[%clk 0:00:35.8]} 31. h5 {[%clk 0:01:52.2]} 31... Rd1+ {[%clk 0:00:35.2]}
32. Kh2 {[%clk 0:01:51.8]} 32... Qd6 {[%clk 0:00:34.6]} 33. hxg6 {[%clk
0:01:51.1]} 33... hxg6 {[%clk 0:00:33.6]} 34. Qxd6 {[%clk 0:01:50.7]} 34... Rxd6
{[%clk 0:00:33.2]} 35. Rxb7 {[%clk 0:01:50.8]} 35... Rd2 {[%clk 0:00:33.1]} 36.
Kg1 {[%clk 0:01:45.6]} 36... Rd1+ {[%clk 0:00:32.7]} 37. Bf1 {[%clk 0:01:45.2]}
37... g5 {[%clk 0:00:31]} 38. Kg2 {[%clk 0:01:42.8]} 38... Bh5 {[%clk
0:00:30.4]} 39. Rb8+ {[%clk 0:01:38.1]} 39... Kg7 {[%clk 0:00:29.9]} 40. Rb7+
{[%clk 0:01:33.8]} 40... Kf6 {[%clk 0:00:29.8]} 41. Rb6+ {[%clk 0:01:33.7]}
41... Ke7 {[%clk 0:00:29]} 42. f3 {[%clk 0:01:20.5]} 42... Bxf3+ {[%clk
0:00:28.2]} 43. Kf2 {[%clk 0:01:19]} 43... Rd2+ {[%clk 0:00:26.2]} 44. Ke3
{[%clk 0:01:18.7]} 44... Rxa2 {[%clk 0:00:25.9]} 45. Rb5 {[%clk 0:01:14.3]}
45... Ke6 {[%clk 0:00:24.9]} 46. c5 {[%clk 0:01:12.6]} 46... Ra1 {[%clk
0:00:24.6]} 47. Bc4+ {[%clk 0:01:11.8]} 47... Kd7 {[%clk 0:00:23.4]} 48. c6+
{[%clk 0:01:08.9]} 48... Kxc6 {[%clk 0:00:23.4]} 49. Rxf5 {[%clk 0:01:09]} 49...
Re1+ {[%clk 0:00:23.7]} 50. Kf2 {[%clk 0:01:07.5]} 50... Ra1 {[%clk 0:00:22.3]}
51. Rxg5 {[%clk 0:01:06.8]} 51... Ra2+ {[%clk 0:00:22.1]} 52. Ke3 {[%clk
0:01:06.4]} 52... Rg2 {[%clk 0:00:21.1]} 53. Bd5+ {[%clk 0:01:03.2]} 53... Kd6
{[%clk 0:00:20.7]} 54. Bxe4 {[%clk 0:01:03.2]} 54... Bxe4 {[%clk 0:00:20.7]} 55.
Kxe4 {[%clk 0:01:04.1]} 55... Ke6 {[%clk 0:00:20.3]} 56. Rg6+ {[%clk 0:01:03.2]}
56... Kf7 {[%clk 0:00:20]} 57. Rg4 {[%clk 0:00:59]} 57... Rb2 {[%clk 0:00:19.4]}
58. Rf4+ {[%clk 0:00:57.1]} 58... Kg6 {[%clk 0:00:18.7]} 59. Rf3 {[%clk
0:00:57.2]} 59... Kg5 {[%clk 0:00:18.9]} 60. Kd4 {[%clk 0:00:52.7]} 60... Kg4
{[%clk 0:00:18.4]} 61. Rd3 {[%clk 0:00:52.8]} 61... Kf5 {[%clk 0:00:16.5]} 62.
Kc3 {[%clk 0:00:52.2]} 62... Rb1 {[%clk 0:00:14.8]} 63. b4 {[%clk 0:00:51.7]}
63... Ra1 {[%clk 0:00:13.3]} 64. Kb2 {[%clk 0:00:48.9]} 64... Ra7 {[%clk
0:00:12.5]} 65. Kb3 {[%clk 0:00:46]} 65... Rg7 {[%clk 0:00:11.6]} 66. Rc3 {[%clk
0:00:45.5]} 66... Ke5 {[%clk 0:00:10.9]} 67. b5 {[%clk 0:00:44.4]} 67... Kd6
{[%clk 0:00:10.3]} 68. Kb4 {[%clk 0:00:41.1]} 68... Rg4+ {[%clk 0:00:08.5]} 69.
Ka5 {[%clk 0:00:40.8]} 69... Rg8 {[%clk 0:00:05.8]} 70. b6 {[%clk 0:00:40.2]}
70... Ra8+ {[%clk 0:00:03.9]} 71. Kb5 {[%clk 0:00:39.7]} 71... Ra1 {[%clk
0:00:04.8]} 72. Rd3+ {[%clk 0:00:38.3]} 72... Ke7 {[%clk 0:00:03.9]} 73. Kc6
{[%clk 0:00:36.7]} 73... Rc1+ {[%clk 0:00:02.4]} 74. Kb7 {[%clk 0:00:36]} 1-0

[Event "*** Titled Tuesday Blitz"]
[Site "Chess.com"]
[Date "2021.03.30"]
[Round "3"]
[White "SanchezKelvin"]
[Black "Twitch_ElhamBlitz05"]
[Result "0-1"]
[WhiteElo "2631"]
[BlackElo "2881"]
[TimeControl "180+1"]
[EndTime "10:29:56 PDT"]
[Termination "Twitch_ElhamBlitz05 won by resignation"]

1. d4 {[%clk 0:03:00.9]} 1... Nf6 {[%clk 0:03:00]} 2. c4 {[%clk 0:03:00.1]} 2...
e6 {[%clk 0:03:00.3]} 3. Nf3 {[%clk 0:03:00.2]} 3... c5 {[%clk 0:03:00.5]} 4.
Nc3 {[%clk 0:02:59.5]} 4... cxd4 {[%clk 0:03:00.5]} 5. Nxd4 {[%clk 0:02:59.5]}
5... Nc6 {[%clk 0:03:01.2]} 6. g3 {[%clk 0:02:57.1]} 6... d5 {[%clk 0:03:00.9]}
7. Bg2 {[%clk 0:02:54.4]} 7... Be7 {[%clk 0:02:57.4]} 8. cxd5 {[%clk 0:02:53.3]}
8... exd5 {[%clk 0:02:58.3]} 9. O-O {[%clk 0:02:52.8]} 9... O-O {[%clk
0:02:58.4]} 10. Bg5 {[%clk 0:02:50.6]} 10... h6 {[%clk 0:02:57.2]} 11. Be3
{[%clk 0:02:48.7]} 11... Re8 {[%clk 0:02:51.2]} 12. Rc1 {[%clk 0:02:48]} 12...
Ng4 {[%clk 0:02:43.4]} 13. Nxc6 {[%clk 0:02:21.7]} 13... bxc6 {[%clk 0:02:42.8]}
14. Bd4 {[%clk 0:02:12]} 14... Rb8 {[%clk 0:01:44.6]} 15. h3 {[%clk 0:01:56.7]}
15... Nf6 {[%clk 0:01:22.8]} 16. b3 {[%clk 0:01:54.8]} 16... Qa5 {[%clk
0:01:03.1]} 17. Na4 {[%clk 0:01:52.6]} 17... Bd7 {[%clk 0:00:53.6]} 18. Bc5
{[%clk 0:01:47.7]} 18... Bxc5 {[%clk 0:00:50.5]} 19. Rxc5 {[%clk 0:01:41.5]}
19... Qd8 {[%clk 0:00:50.7]} 20. e3 {[%clk 0:01:36.5]} 20... Ne4 {[%clk
0:00:45.6]} 21. Rc2 {[%clk 0:01:34]} 21... Qf6 {[%clk 0:00:40.7]} 22. Qa1 {[%clk
0:01:26.9]} 22... Qg6 {[%clk 0:00:36.4]} 23. Rfc1 {[%clk 0:01:15.3]} 23... Ng5
{[%clk 0:00:27.2]} 24. h4 {[%clk 0:01:12.8]} 24... Ne4 {[%clk 0:00:21.8]} 25.
Qd4 {[%clk 0:01:08.5]} 25... a5 {[%clk 0:00:17.1]} 26. Nc5 {[%clk 0:00:54.1]}
26... Rb4 {[%clk 0:00:17.2]} 27. Qd3 {[%clk 0:00:46.5]} 27... Nxc5 {[%clk
0:00:06.4]} 28. Qxg6 {[%clk 0:00:45.6]} 28... fxg6 {[%clk 0:00:07.3]} 29. Rxc5
{[%clk 0:00:45.2]} 29... a4 {[%clk 0:00:07.9]} 30. bxa4 {[%clk 0:00:37.8]} 30...
Rxa4 {[%clk 0:00:08.8]} 31. R1c2 {[%clk 0:00:36.7]} 31... Rea8 {[%clk 0:00:09]}
32. e4 {[%clk 0:00:12.5]} 32... dxe4 {[%clk 0:00:06.7]} 33. Rd2 {[%clk
0:00:12.9]} 33... Be8 {[%clk 0:00:05.7]} 34. Re2 {[%clk 0:00:11.4]} 34... Rxa2
{[%clk 0:00:04.1]} 35. Rxa2 {[%clk 0:00:10.9]} 35... Rxa2 {[%clk 0:00:04]} 36.
Bxe4 {[%clk 0:00:11.4]} 36... Ra6 {[%clk 0:00:03.8]} 37. Kg2 {[%clk 0:00:11]}
37... Kf8 {[%clk 0:00:04.4]} 38. g4 {[%clk 0:00:10.1]} 38... Ke7 {[%clk
0:00:04.7]} 39. Bd3 {[%clk 0:00:08.7]} 39... Ra4 {[%clk 0:00:04.2]} 40. Be2
{[%clk 0:00:07.4]} 40... Kd6 {[%clk 0:00:03.7]} 41. Rc3 {[%clk 0:00:07.6]} 41...
Bf7 {[%clk 0:00:04]} 42. Rd3+ {[%clk 0:00:06.6]} 42... Bd5+ {[%clk 0:00:04.7]}
43. Bf3 {[%clk 0:00:06.5]} 43... Rxg4+ {[%clk 0:00:04.3]} 44. Kh3 {[%clk
0:00:06.8]} 44... Rf4 {[%clk 0:00:04.4]} 45. Bxd5 {[%clk 0:00:05.8]} 45... cxd5
{[%clk 0:00:05.3]} 46. Kg3 {[%clk 0:00:06.3]} 46... Rf5 {[%clk 0:00:05.6]} 47.
Ra3 {[%clk 0:00:05.5]} 47... g5 {[%clk 0:00:04.5]} 48. h5 {[%clk 0:00:03.7]}
48... Rf7 {[%clk 0:00:03.2]} 49. Ra6+ {[%clk 0:00:03.5]} 49... Ke5 {[%clk
0:00:03.1]} 50. f3 {[%clk 0:00:03.9]} 50... Kd4 {[%clk 0:00:02.3]} 51. Kf2
{[%clk 0:00:03.1]} 51... Kc4 {[%clk 0:00:02.5]} 52. Ke3 {[%clk 0:00:03.2]} 52...
d4+ {[%clk 0:00:02.6]} 53. Ke2 {[%clk 0:00:03.6]} 53... d3+ {[%clk 0:00:03.1]}
54. Ke3 {[%clk 0:00:04.2]} 54... Re7+ {[%clk 0:00:03.7]} 55. Kd2 {[%clk
0:00:04.5]} 55... Re2+ {[%clk 0:00:04.2]} 56. Kd1 {[%clk 0:00:05]} 56... Rh2
{[%clk 0:00:03.7]} 57. Rc6+ {[%clk 0:00:05]} 57... Kd4 {[%clk 0:00:04]} 58. Re6
{[%clk 0:00:05.2]} 58... Rxh5 {[%clk 0:00:03.6]} 59. Re7 {[%clk 0:00:05.6]}
59... Rh1+ {[%clk 0:00:03.1]} 60. Kd2 {[%clk 0:00:05.5]} 60... Rh2+ {[%clk
0:00:04]} 61. Kd1 {[%clk 0:00:05.9]} 61... h5 {[%clk 0:00:04.1]} 62. Rxg7 {[%clk
0:00:05.8]} 62... Ke3 {[%clk 0:00:04.8]} 63. Re7+ {[%clk 0:00:05.9]} 63... Kxf3
{[%clk 0:00:05.4]} 64. Re5 {[%clk 0:00:06.1]} 64... g4 {[%clk 0:00:05.5]} 65.
Rf5+ {[%clk 0:00:06.5]} 65... Ke4 {[%clk 0:00:05.7]} 66. Rf7 {[%clk 0:00:06.7]}
66... g3 {[%clk 0:00:06]} 67. Rg7 {[%clk 0:00:06.7]} 67... h4 {[%clk 0:00:05.9]}
68. Re7+ {[%clk 0:00:06.8]} 68... Kf3 {[%clk 0:00:06.3]} 69. Rg7 {[%clk
0:00:07.7]} 69... Re2 {[%clk 0:00:05.7]} 0-1